[Event "Romanian Superleague 2022"]
[Site "Oradea"]
[Date "2022.09.28"]
[Round "8.1"]
[White "Tarlev, Konstantin"]
[Black "Marin, Mihail"]
[Result "1-0"]
[ECO "E11"]
[WhiteElo "2576"]
[BlackElo "2457"]
[Annotator "TA"]
[PlyCount "135"]
[EventDate "2022.09.21"]
[EventType "team-tourn"]
[EventCountry "ROU"]
[SourceTitle "playchess.com"]
[Source "ChessBase"]
[SourceQuality "1"]
[TimeControl "40/5400+30:1800+30"]

{[%evp 20,135,40,40,42,40,40,37,62,41,66,55,76,70,76,58,53,35,57,37,42,43,68,58,65,54,60,62,78,79,82,57,72,72,75,38,48,3,17,31,34,34,34,0,26,32,118,0,15,0,50,35,120,127,454,225,224,236,260,249,256,259,263,257,262,253,220,223,255,246,404,386,449,443,438,431,415,401,2019,1550,1358,541,652,505,500,476,370,254,254,254,247,240,588,584,6111,8714,29953,6319,5683,5093,1950,1652,29965,29966,29970,29971,29975,29976,29977,29976,29976,29977,29977,29973,29967,29954,29958,5126]} 1. d4 {[%emt 0:00:06]} d5 {[%emt 0:00:08]} 2. c4 {[%emt 0:00:07]} e6 {[%emt 0:00:05]} 3. Nf3 {[%emt 0:00:32]} Nf6 {[%emt 0:00:06]} 4. g3 {[%emt 0:00:05]} Bb4+ {[%emt 0:00:06]} 5. Bd2 {[%emt 0:04:46]} a5 {[%emt 0:00:32]} 6. Bg2 {[%emt 0:08:41]} dxc4 {[%emt 0:01:47]} 7. Qc2 {[%emt 0:00:25]} Nc6 {[%emt 0:00:07]} 8. Qxc4 {[%emt 0:00:52]} Qd5 {[%emt 0:00:06]} 9. Qd3 {[%emt 0:16:05]} Qe4 {[%emt 0:00:10]} 10. Qxe4 {[%emt 0:01:39]} Nxe4 {[%emt 0:00:07]} 11. a3 {[%emt 0:04:24]} Nxd2 {[%emt 0:03:07] E11: Bogo-Indian.} 12. Nbxd2 {[%emt 0:00:14]} Be7 {[%emt 0:00:48][%cal Bb4e7,Be7d8,Bd8c7][%mdl 32]} 13. Rc1 {[%emt 0:00:29]} a4 {[%emt 0:08:54] White is slightly better.} 14. e3 {[%emt 0:05:58]} Bd8 {[%emt 0:10:05] [#]} 15. O-O $146 {[%emt 0:02:04]} ({Predecessor:} 15. Ke2 Bd7 16. Rhd1 Na5 17. Ne5 Bb5+ 18. Ke1 f6 19. Nec4 Nxc4 20. Nxc4 Bxc4 21. Rxc4 {1-0 (78) Torre,E (2535)-Maninang,R (2350) Manila 1982}) 15... Na5 {[%emt 0:01:22]} 16. Ne5 {[%emt 0:01:28]} Bd7 {[%emt 0:11:24]} 17. Rc5 {[%emt 0:16:00] White is much more active. The black rooks are badly placed.} c6 {[%emt 0:05:41]} 18. Rfc1 {[%emt 0:12:01]} Ke7 {[%emt 0:01:53]} 19. Bf3 {[%emt 0:00:48]} Bc7 {[%emt 0:04:03]} 20. Nd3 {[%emt 0:05:12]} Rhc8 {[%emt 0:05:16]} 21. R5c3 {[%emt 0:03:42]} Bd6 {[%emt 0:04:25]} 22. Bd1 {[%emt 0:00:46]} b5 {[%emt 0:00:12]} 23. Ne4 {[%emt 0:02:16]} Rc7 {[%emt 0:01:35]} 24. Nxd6 {[%emt 0:05:04]} Kxd6 {[%emt 0:00:06]} 25. f4 {[%emt 0:01:17]} Be8 {[%emt 0:01:39]} 26. Kf2 {[%emt 0:00:06]} f6 {[%emt 0:01:45]} 27. e4 {[%emt 0:00:14]} (27. Nb4 {seems wilder.} Rac8 28. e4 Nc4 29. Bxa4 Nxb2 30. Bb3) 27... Ke7 {[%emt 0:05:55]} 28. Ke3 {[%emt 0:02:23]} Rd8 {[%emt 0:01:06]} 29. Nc5 {[%emt 0:00:10] Prevents Rcd7.} e5 {[%emt 0:00:30]} 30. dxe5 {[%emt 0:00:30]} fxe5 {[%emt 0:00:30]} 31. fxe5 {[%emt 0:00:30]} (31. Be2 $5 {[%cal Rf4e5]}) 31... Bf7 {[%emt 0:00:30] Against e6} 32. Be2 {[%emt 0:00:30]} Be8 {[%emt 0:04:28]} (32... Rcc8 $14) 33. Bd1 {[%emt 0:01:09]} (33. h4 $16) 33... Bf7 $11 {[%emt 0:00:28]} 34. Be2 {[%emt 0:00:39][%cal Oe5e6]} Bc4 {[%emt 0:02:57] Against e6} (34... Be8 $11) 35. Rf1 {[%emt 0:04:05]} Bxe2 {[%emt 0:03:41]} ({Black should try} 35... Rcc8 $14) 36. Kxe2 $16 {[%emt 0:00:03]} Nb7 $2 {[%emt 0:22:56][%mdl 8192] [#] Loses the game.} (36... Rcc8 $16) 37. Nxb7 {[%emt 0:00:30]} (37. Rcf3 $142 $1 {Threatening mate with Rf7+.} Nxc5 38. Rf7+ Ke8 39. Rxc7) 37... Rxb7 $18 {[%emt 0:00:00]} 38. Rxc6 {[%emt 0:03:40][%mdl 4096] Endgame KRR-KRR} Rbd7 {[#]} 39. Rf7+ $3 {[%emt 0:00:00][%mdl 512]} Kxf7 {[%emt 0:00:00]} 40. e6+ {[%emt 0:00:00]} Ke7 {[%emt 0:00:00]} 41. exd7 {[%emt 0:27:57]} Rxd7 {[%emt 0:20:42] KR-KR} 42. Rb6 {[%emt 0:00:00] Inhibits Rb7.} Rc7 {[%emt 0:00:00]} 43. Kd3 {[%emt 0:00:00] Against Rc2} ({Don't play} 43. Rxb5 $6 Rc2+ 44. Ke3 Rxh2 $16) 43... Rc5 {[%emt 0:00:00]} 44. h4 {[%emt 0:00:00]} h5 $2 {[%emt 0:00:00]} (44... Rc1 45. Rxb5 Rg1 46. Rb7+ Kf8) 45. Kd4 {[%emt 0:00:00]} Rc4+ {[%emt 0:00:00]} 46. Kd5 {[%emt 0:00:00] Black must now prevent Rc6.} Rc2 {[%emt 0:00:00]} 47. Rxb5 {[%emt 0:00:00]} Rg2 {[%emt 0:00:00]} 48. Rb7+ {[%emt 0:00:00]} Kf6 {[%emt 0:00:00]} (48... Kf8 $142 49. Rb4 Rxg3 50. Rxa4 g5 51. hxg5 Rxg5+ 52. e5 Rg2) 49. e5+ {[%emt 0:00:00]} Kg6 {[%emt 0:00:00]} 50. Rb4 {[%emt 0:00:00]} (50. e6 $142 Re2 51. Kd6 Rd2+ 52. Ke7) 50... Rxg3 {[%emt 0:00:00]} 51. Rxa4 {[%emt 0:00:00]} Kf5 {[%emt 0:00:00]} 52. Rb4 {[%emt 0:00:00]} Re3 {[%emt 0:00:00]} 53. a4 {[%emt 0:00:00][%cal Ba3a4,Ba4a5,Ba5a6,Ba6a7][%mdl 32]} Rxe5+ {[%emt 0:00:00]} 54. Kc6 {[%emt 0:00:00] Rd4 is the strong threat.} g5 {[%emt 0:00:00]} 55. hxg5 {[%emt 0:00:00]} Kxg5 {[%emt 0:00:00]} (55... Re6+ {is tougher.} 56. Kd7 Ra6) 56. Rd4 {[%emt 0:04:40] aiming for b4.} ({Weaker is} 56. Rb5 Rxb5 57. axb5 h4 $11) 56... h4 {[%emt 0:00:00]} 57. b4 {[%emt 0:00:32] Prevents Ra5.} h3 {[%emt 0:00:00]} 58. a5 {[%emt 0:01:38] White threatens a6 and mate.} Re6+ {[%emt 0:00:00]} 59. Kb5 {[%emt 0:01:50]} Re5+ {[%emt 0:00:00]} 60. Ka4 {[%emt 0:00:39]} h2 {[%emt 0:00:00]} 61. Rd1 {[%emt 0:00:02] White mates.} Re6 {[%emt 0:00:00]} 62. Rh1 {[%emt 0:00:43]} Re2 {[%emt 0:00:05]} 63. a6 {[%emt 0:00:39]} Kf6 {[%emt 0:00:20]} 64. Ka5 {[%emt 0:00:33]} Ke5 {[%emt 0:01:56]} 65. a7 {[%emt 0:00:50]} Kd4 {[%emt 0:00:42]} 66. b5 {[%emt 0:02:13]} Kc5 {[%emt 0:06:15]} 67. Rc1+ {[%emt 0:00:05]} Kd4 {[%emt 0:00:20]} 68. Ka6 {[%emt 0:00:11] Weighted Error Value: White=0.30/Black=0.68} (68. Kb6 $142 Re8 69. Rh1 Rh8 {[#]} 70. Rxh2 $3 {[%mdl 512]} Rxh2 71. a8=Q Ke3 72. Qd5 Rf2 73. Qc5+ Kf3 74. Qxf2+ $3 {[%mdl 512]} Kxf2 75. Kc6) 1-0

[Event "Romanian Superleague 2022"]
[Site "Oradea"]
[Date "2022.09.28"]
[Round "8.2"]
[White "Miron, Lucian-Costin"]
[Black "Ionescu, Constantin"]
[Result "1/2-1/2"]
[ECO "B05"]
[WhiteElo "2498"]
[BlackElo "2415"]
[Annotator "TA"]
[PlyCount "26"]
[EventDate "2022.09.21"]
[EventType "team-tourn"]
[EventCountry "ROU"]
[SourceTitle "playchess.com"]
[Source "ChessBase"]
[SourceQuality "1"]
[TimeControl "40/5400+30:1800+30"]

{[%evp 17,26,31,22,16,20,9,23,6,11,4,27]} 1. e4 {[%emt 0:00:13][%cal Be2e4,Be4e5][%mdl 32]} Nf6 {[%emt 0:00:12]} 2. e5 {[%emt 0:01:12]} Nd5 {[%emt 0:00:49]} 3. d4 {[%emt 0:00:50]} d6 {[%emt 0:00:07]} 4. Nf3 {[%emt 0:00:53]} Bg4 {[%emt 0:04:14]} 5. Be2 {[%emt 0:01:20]} c6 {[%emt 0:02:27]} 6. O-O {[%emt 0:03:48]} Bxf3 {[%emt 0:05:03]} 7. Bxf3 {[%emt 0:00:25]} dxe5 {[%emt 0:00:08]} 8. dxe5 {[%emt 0:01:28]} e6 {[%emt 0:00:03]} 9. Qe2 {[%emt 0:08:17]} Nd7 {[%emt 0:00:10]} 10. g3 {[%emt 0:05:27] B05: Alekhine's Defence: 4 Nf3 Bg4.} Qc7 {[%emt 0:03:37]} 11. Re1 {[%emt 0:00:21]} Bc5 {[%emt 0:02:15]} 12. c3 {[%emt 0:05:46]} a5 {[%emt 0:04:10] [#]} 13. Nd2 $146 {[%emt 0:30:14]} ({Predecessor:} 13. b3 O-O 14. Bb2 b5 15. c4 bxc4 16. bxc4 Ne7 17. Nc3 Nf5 18. Na4 Nd4 19. Bxd4 Bxd4 {1-0 (40) Simonovic,A (2360)-Sarenac,I (2425) Ruma 2017}) 13... a4 {[%emt 0:00:26] Not much happened in this game.  Weighted Error Value: White=0.05 (flawless) /Black=0.01 (flawless)} 1/2-1/2

[Event "Romanian Superleague 2022"]
[Site "Oradea"]
[Date "2022.09.28"]
[Round "8.3"]
[White "Soltanici, Ruslan"]
[Black "Secheres, Adrian-Simion"]
[Result "1-0"]
[ECO "C60"]
[WhiteElo "2333"]
[BlackElo "2375"]
[Annotator "TA"]
[PlyCount "40"]
[EventDate "2022.09.21"]
[EventType "team-tourn"]
[EventCountry "ROU"]
[SourceTitle "playchess.com"]
[Source "ChessBase"]
[SourceQuality "1"]
[TimeControl "40/5400+30:1800+30"]

{[%evp 11,40,29,34,0,43,33,31,37,44,40,46,37,48,35,70,63,79,70,109,116,112,101,106,118,113,97,95,94,97,90,275]} 1. e4 {[%emt 0:00:07]} e5 {[%emt 0:00:20]} 2. Nf3 {[%emt 0:00:13]} Nc6 {[%emt 0:00:20]} 3. Bb5 {[%emt 0:00:19]} Nge7 {[%emt 0:00:41]} 4. d4 {[%emt 0:08:52]} exd4 {[%emt 0:00:25]} 5. Nxd4 {[%emt 0:00:38]} Nxd4 {[%emt 0:00:39]} 6. Qxd4 {[%emt 0:00:14]} Nc6 {[%emt 0:00:46]} 7. Bxc6 {[%emt 0:05:29] C60: Ruy Lopez: Unusual Black 3rd moves and 3...g6.} bxc6 {[%emt 0:04:35]} 8. Nc3 {[%emt 0:00:37]} d6 {[%emt 0:03:16] Inhibits Qe5+.} 9. O-O {[%emt 0:01:48] White is slightly better.} c5 {[%emt 0:10:08]} 10. Qd3 {[%emt 0:01:37][%cal Oe4e5]} Be7 {[%emt 0:03:40]} 11. Bf4 {[%emt 0:05:59] [#]} Be6 $146 {[%emt 0:04:51]} ({Predecessor:} 11... O-O 12. Rad1 Be6 13. b3 Qc8 14. Qg3 Rd8 15. Rfe1 Rd7 16. Nd5 Bxd5 17. Rxd5 Bf6 {½-½ (45) Stanojoski,Z (2310)-Lazic,M (2495) Kladovo 1990}) 12. Rad1 {[%emt 0:07:18]} Rb8 {[%emt 0:17:24][%cal Ba8b8,Bb8b4,Bb4d4][%mdl 32]} 13. b3 {[%emt 0:02:42]} O-O {[%emt 0:14:50]} 14. e5 {[%emt 0:24:58] White is more active.} Rb4 {[%emt 0:10:30]} 15. exd6 {[%emt 0:08:15] White is better.} cxd6 {[%emt 0:01:25]} 16. Bxd6 {[%emt 0:02:16]} Rd4 {[%emt 0:05:17]} 17. Bxe7 {[%emt 0:00:40]} Qxe7 {[%emt 0:00:06]} 18. Qe3 {[%emt 0:02:31]} Rfd8 {[%emt 0:00:06]} 19. Rc1 {[%emt 0:00:30]} h6 {[%emt 0:02:46]} 20. Rfe1 {[%emt 0:02:56]} Qc7 $2 {[%emt 0:18:25] Weighted Error Value: White=0.07 (flawless) /Black=0.13 (very precise)} (20... c4 $16) 1-0

[Event "Romanian Superleague 2022"]
[Site "Oradea"]
[Date "2022.09.28"]
[Round "8.4"]
[White "Filip, Andrei"]
[Black "Cosma, Ioan"]
[Result "0-1"]
[ECO "B62"]
[WhiteElo "2356"]
[BlackElo "2367"]
[Annotator "TA"]
[PlyCount "62"]
[EventDate "2022.09.21"]
[EventType "team-tourn"]
[EventCountry "ROU"]
[SourceTitle "playchess.com"]
[Source "ChessBase"]
[SourceQuality "1"]
[TimeControl "40/5400+30:1800+30"]

{[%evp 12,62,35,35,26,19,48,37,47,48,46,53,58,0,0,0,46,8,25,19,26,-18,0,-38,-45,-50,47,32,86,85,72,93,89,9,29,-14,-22,-53,-43,-63,-43,-57,237,-15,-20,-466,-481,-5457,-5221,-29997,-29998,-29998,-29999]} 1. e4 {[%emt 0:00:04]} c5 {[%emt 0:00:15]} 2. Nf3 {[%emt 0:00:06]} Nc6 {[%emt 0:00:08]} 3. d4 {[%emt 0:00:09]} cxd4 {[%emt 0:00:07]} 4. Nxd4 {[%emt 0:00:04]} Nf6 {[%emt 0:00:31]} 5. Nc3 {[%emt 0:00:11]} d6 {[%emt 0:00:06]} 6. Bg5 {[%emt 0:00:11]} e6 {[%emt 0:00:09]} 7. Qd3 {[%emt 0:00:29]} Be7 {[%emt 0:02:44] Recently 7...Bd7 got a lot of attention. B62: Sicilian: Richter-Rauzer: 6...e6: Unusual White 7th moves.} 8. O-O-O {[%emt 0:07:54]} a6 {[%emt 0:03:00] Prevents Ndb5.} 9. Nxc6 {[%emt 0:00:16]} bxc6 {[%emt 0:00:05] White is slightly better.} 10. h4 {[%emt 0:13:55]} O-O {[%emt 0:03:41]} 11. Qg3 {[%emt 0:08:00] [#]} d5 $146 {[%emt 0:06:45]} ({Predecessor:} 11... e5 12. Bc4 Rb8 13. Rd3 Qa5 14. Rhd1 Kh8 15. Bb3 Be6 16. Bxf6 gxf6 17. Qf3 f5 18. exf5 Bxb3 19. axb3 {1-0 (55) Dvirnyy,D (2488)-Hjartarson,J (2519) Chess.com INT 2021}) 12. Bc4 {[%emt 0:14:49]} (12. h5 $14) 12... Kh8 $11 {[%emt 0:07:15]} 13. Bb3 $40 {[%emt 0:00:57][%mdl 128] White attacks.} h6 {[%emt 0:02:42]} (13... a5 $11 {was preferrable.}) 14. Be3 {[%emt 0:04:27]} (14. Kb1 $5) 14... a5 {[%emt 0:02:06][%cal Oa5a4]} 15. f3 {[%emt 0:06:17]} Nd7 {[%emt 0:06:03]} 16. Qf2 {[%emt 0:01:46]} (16. exd5 cxd5 17. Ba4 (17. Bd4 Bf6 $15) 17... Bf6 $15) 16... f5 {[%emt 0:08:15] ...fxe4 is the strong threat.} 17. Qd2 {[%emt 0:03:12][%cal Re4d5]} fxe4 {[%emt 0:07:27]} 18. fxe4 {[%emt 0:00:57]} Bf6 {[%emt 0:03:29]} ({Black should play} 18... Nf6 $1 $15) 19. Na4 $1 $14 {[%emt 0:03:05]} Qe7 {[%emt 0:04:53]} (19... Bxh4 $2 20. Bxh6 $1 Kg8 21. Be3 $18 (21. exd5 cxd5 22. Be3 Bb7 $18) (21. Bxg7 $2 Bg5 $19)) ({Black should try} 19... Ne5 $14) 20. g4 $1 $16 {[%emt 0:01:36]} Be5 {[%emt 0:02:49]} (20... Bxh4 $2 21. g5 Bg3 22. Rdg1 $16 (22. gxh6 g6 $16)) 21. g5 {[%emt 0:02:29] Prevents Nf6.} h5 {[%emt 0:00:59]} (21... dxe4 $2 22. gxh6 gxh6 23. Rhg1 $18) 22. g6 {[%emt 0:00:11]} (22. c4 $16) 22... Ba6 {[%emt 0:00:45]} (22... dxe4 23. Qg2 Rf5 24. Qxe4 $16) 23. Rdg1 {[%emt 0:00:11] Threatens to win with Nb6.} Rf3 {[%emt 0:00:38]} (23... dxe4 24. Rd1 Nf6 25. Kb1 $14 (25. Bc5 Qc7 $11)) 24. Bg5 {[%emt 0:09:00]} ({But not} 24. Rg5 Raf8 25. Rd1 (25. Rxh5+ Kg8 $19) 25... Rxe3 $1 26. Rxe5 (26. Qxe3 $2 Bf4 $19) (26. Rxh5+ $2 Kg8 $19) 26... Be2 $17) 24... Qd6 {[%emt 0:01:31]} 25. Kb1 {[%emt 0:04:17]} Bb5 {[%emt 0:03:40] Black is more active.} (25... c5 $5 {[%cal Rc5c4]} 26. c4 (26. exd5 c4 $17) 26... dxc4 27. Qxd6 Bxd6 $15) 26. exd5 {[%emt 0:03:12]} Bxa4 $2 {[%emt 0:03:17][%mdl 8192]} (26... exd5 $15 {keeps the upper hand.} 27. Qd1 Raf8) 27. Bxa4 $2 {[%emt 0:00:33]} ({Better is} 27. Qe2 $18 Bxb3 28. Qxf3 Bxa2+ 29. Kxa2 Qxd5+ 30. Qxd5 cxd5 31. Re1) 27... Rb8 $1 $11 {[%emt 0:02:16] The board is on fire.} 28. b3 {[%emt 0:01:09][%mdl 8192] [#]} (28. Bb3 $1 $11 {and White stays safe.} a4 29. dxe6 Qxd2 30. Bxd2 axb3 31. cxb3 (31. exd7 {gets mated.} bxa2+ 32. Ka1 Bxb2+ 33. Kxa2 Ra3+ 34. Kb1 Ra1#)) 28... Qa3 $1 $19 {[%emt 0:01:07][%csl Ge5][%cal Ra3b2]} 29. c4 {[%emt 0:02:35]} (29. c3 $142 Qxa4 30. Qe2 Bxc3 31. Qxf3 Rxb3+ 32. axb3 Qxb3+ 33. Kc1 Bb2+ 34. Kb1 Qxf3 35. Kxb2 Qe2+ 36. Ka1 Qe5+ 37. Ka2 Qxd5+ 38. Kb2 Qd4+ 39. Ka2 Qa4+ 40. Kb1 Qe4+ 41. Kc1) 29... Qxa4 {[%emt 0:01:05]} 30. dxe6 {[%emt 0:00:07] [#]} Rfxb3+ $1 {[%emt 0:02:33][%mdl 512]} 31. axb3 {[%emt 0:00:35]} (31. Qb2 Rxb2+) 31... Qxb3+ {[%emt 0:00:12] Weighted Error Value: White=0.75/Black=0.29 (precise)} 0-1

[Event "Romanian Superleague 2022"]
[Site "Oradea"]
[Date "2022.09.28"]
[Round "8.5"]
[White "Itkis, Boris"]
[Black "Nastore, Pavel-Alexandru"]
[Result "1/2-1/2"]
[ECO "A70"]
[WhiteElo "2332"]
[BlackElo "2279"]
[Annotator "TA"]
[PlyCount "57"]
[EventDate "2022.09.21"]
[EventType "team-tourn"]
[EventCountry "ROU"]
[SourceTitle "playchess.com"]
[Source "ChessBase"]
[SourceQuality "1"]
[TimeControl "40/5400+30:1800+30"]

{[%evp 29,57,18,23,12,45,17,18,14,25,19,28,18,18,18,18,16,20,10,18,19,36,25,25,29,23,18,21,30,35,0]} 1. d4 {[%emt 0:00:05]} Nf6 {[%emt 0:00:14]} 2. c4 {[%emt 0:00:18]} c5 {[%emt 0:00:06]} 3. d5 {[%emt 0:00:20]} e6 {[%emt 0:00:04]} 4. Nc3 {[%emt 0:00:13]} exd5 {[%emt 0:00:03]} 5. cxd5 {[%emt 0:00:07]} d6 {[%emt 0:00:06]} 6. e4 {[%emt 0:00:24]} g6 {[%emt 0:00:06]} 7. h3 {[%emt 0:00:13]} Bg7 {[%emt 0:00:04]} 8. Nf3 {[%emt 0:00:06]} O-O {[%emt 0:00:03]} 9. Bd3 {[%emt 0:00:44]} b5 {[%emt 0:00:05]} 10. Bxb5 {[%emt 0:04:55]} Nxe4 {[%emt 0:00:44]} 11. Nxe4 {[%emt 0:00:02]} Qa5+ {[%emt 0:00:05]} 12. Nfd2 {[%emt 0:00:02]} Qxb5 {[%emt 0:00:06]} 13. Nxd6 {[%emt 0:00:02]} Qa6 {[%emt 0:00:43]} 14. N2c4 {[%emt 0:00:25]} Nd7 {[%emt 0:00:23]} 15. O-O {[%emt 0:00:38]} Ne5 {[%emt 0:01:07]} 16. Nxe5 {[%emt 0:04:25] A70: Modern Benoni: 6 e4 g6 7 Nf3.} Bxe5 {[%emt 0:00:12]} 17. Nxc8 {[%emt 0:00:05]} Raxc8 {[%emt 0:12:05]} 18. Qf3 {[%emt 0:09:14] The position is equal.} Qf6 {[%emt 0:07:05]} ({Don't take} 18... Bh2+ 19. Kxh2 Qxf1 {[#]} 20. Bh6 $1 $16) (18... Rfd8 {is interesting.} 19. Bg5 Rd7 20. Rfe1 Qd6) 19. Qxf6 {[%emt 0:00:24]} Bxf6 {[%emt 0:00:01]} 20. Rb1 {[%emt 0:00:23]} Rfd8 {[%emt 0:09:57]} 21. Rd1 {[%emt 0:02:43]} Bd4 {[%emt 0:02:42]} 22. Be3 {[%emt 0:12:11]} Rxd5 {[%emt 0:01:28]} 23. Rd2 {[%emt 0:02:28] [#]} Rb8 $146 {[%emt 0:34:34]} ({Predecessor:} 23... Rcd8 24. Rbd1 a5 25. Kf1 f5 26. Bxd4 cxd4 27. Ke2 Rb5 28. Rc2 Kf7 29. Kd3 Kf6 {½-½ (67) Rogozenco,D (2495)-Stopa,J (2431) Germany 2019}) 24. Rbd1 {[%emt 0:00:53]} Rf5 {[%emt 0:02:32]} 25. Bxd4 {[%emt 0:02:13]} cxd4 {[%emt 0:00:04]} 26. b3 {[%emt 0:00:09]} Ra5 {[%emt 0:00:09]} 27. Rc2 {[%emt 0:01:35]} Rd8 {[%emt 0:03:52]} 28. Rd3 {[%emt 0:02:14]} Ra3 {[%emt 0:02:35]} 29. Rcd2 {[%emt 0:03:13] An interesting draw.  Weighted Error Value: White=0.07 (flawless) /Black=0.05 (flawless)} 1/2-1/2

[Event "Romanian Superleague 2022"]
[Site "Oradea"]
[Date "2022.09.28"]
[Round "8.6"]
[White "Carmaciu, Lucian-Catalin"]
[Black "Bulau, Andrei-Cristian"]
[Result "1-0"]
[ECO "D02"]
[WhiteElo "2376"]
[BlackElo "2183"]
[Annotator "TA"]
[PlyCount "90"]
[EventDate "2022.09.21"]
[EventType "team-tourn"]
[EventCountry "ROU"]
[SourceTitle "playchess.com"]
[Source "ChessBase"]
[SourceQuality "1"]
[TimeControl "40/5400+30:1800+30"]

{[%evp 15,90,-8,4,-6,55,62,45,59,66,56,33,30,54,67,70,0,103,107,103,95,114,111,125,116,118,130,140,137,137,120,141,143,160,160,163,141,152,147,159,157,155,111,111,109,109,109,123,118,126,119,119,120,150,133,145,125,204,115,154,127,179,172,206,214,193,178,225,234,229,219,325,281,341,320,779,775,719]} 1. d4 {[%emt 0:00:04]} d5 {[%emt 0:00:14]} 2. Bf4 {[%emt 0:00:07]} Nf6 {[%emt 0:00:40]} 3. e3 {[%emt 0:00:07]} c5 {[%emt 0:00:28]} 4. c3 {[%emt 0:00:10]} Nc6 {[%emt 0:00:15]} 5. Nd2 {[%emt 0:00:13]} e6 {[%emt 0:01:32]} 6. Bg3 {[%emt 0:00:56]} Bd6 {[%emt 0:00:34]} 7. Ngf3 {[%emt 0:00:12]} O-O {[%emt 0:01:35]} 8. Bd3 {[%emt 0:00:06]} b6 {[%emt 0:03:42]} 9. e4 {[%emt 0:01:18] Recently 9.Qe2 got a lot of attention. D02: 1 d4 d5 2 Nf3 sidelines, including 2...Nf6 3 g3 and 2...Nf6 3 Bf4.} dxe4 {[%emt 0:05:10]} (9... Be7 $11) 10. Nxe4 $14 {[%emt 0:00:09]} Nxe4 {[%emt 0:08:18]} 11. Bxe4 {[%emt 0:00:09] White is slightly better.} Bb7 {[%emt 0:00:03]} 12. dxc5 {[%emt 0:01:03]} Bxc5 {[%emt 0:01:50]} 13. Qa4 {[%emt 0:00:37]} Rc8 {[%emt 0:16:22]} 14. Rd1 {[%emt 0:00:22]} Qe7 {[%emt 0:00:46]} 15. b4 {[%emt 0:00:50] White has more active pieces.} (15. O-O $14) 15... Nxb4 {[%emt 0:08:14]} 16. Bxb7 $16 {[%emt 0:02:04]} Qxb7 {[%emt 0:01:35]} 17. cxb4 {[%emt 0:00:14]} Qe4+ {[%emt 0:00:04]} 18. Kf1 {[%emt 0:00:07] [#]} Rcd8 $146 {[%emt 0:17:58] [#] aiming for ...Qc4+.} ({Predecessor:} 18... Bxb4 19. h3 Rc4 20. Kg1 Bd6 21. Qb3 Bxg3 22. fxg3 Rc2 23. Kh2 Qe2 24. Rhg1 Rxa2 {0-1 (33) Saduakassova,D (2500)-Zhu,J (2462) chess24.com INT 2021}) 19. Re1 {[%emt 0:05:06]} Qc4+ {[%emt 0:00:19]} 20. Kg1 {[%emt 0:00:05]} Qxb4 {[%emt 0:00:32]} 21. Qxb4 Bxb4 {[%emt 0:00:01]} 22. Rb1 {[%emt 0:01:10]} f6 {[%emt 0:06:52]} 23. Kf1 {[%emt 0:02:37]} Bc5 {[%emt 0:02:24]} 24. Ke2 {[%emt 0:00:35]} e5 {[%emt 0:00:23]} 25. Rhd1 {[%emt 0:00:31]} Kf7 {[%emt 0:00:04]} 26. Nd2 {[%emt 0:00:27]} Ke6 {[%emt 0:01:27]} 27. Rbc1 {[%emt 1:24:41]} Rc8 {[%emt 0:22:38]} 28. Nb3 {[%emt 0:00:30]} Ba3 {[%emt 0:00:30]} 29. Rxc8 {[%emt 0:00:00]} Rxc8 {[%emt 0:00:30]} 30. f4 {[%emt 0:01:00]} Rc2+ {[%emt 0:00:30]} 31. Rd2 {[%emt 0:00:00]} Rc4 {[%emt 0:00:00]} 32. fxe5 {[%emt 0:00:00]} fxe5 {[%emt 0:00:00]} 33. Kd3 {[%emt 0:00:00]} b5 {[%emt 0:00:00]} 34. Re2 {[%emt 0:00:00]} Bd6 {[%emt 0:00:00]} 35. Bf2 {[%emt 0:00:00] [#] Black must now prevent Nd4+.} Kd5 {[%emt 0:00:00] Inhibits Nd4.} (35... a6 $16 36. Re4 Kd5) 36. h3 {[%emt 0:00:00]} (36. Bxa7 $18 Bb4 37. Rb2) 36... a5 {[%emt 0:00:00]} 37. Rb2 {[%emt 0:00:00]} ({Inferior is} 37. Nxa5 e4+ 38. Ke3 Rc3+ 39. Kd2 Bb4 $17) 37... Ra4 {[%emt 0:00:00]} (37... Ba3 $16 38. Rb1 Ra4) 38. Ke2 {[%emt 0:00:00]} Re4+ {[%emt 0:00:00]} 39. Kd1 {[%emt 0:00:00]} a4 {[%emt 0:00:24]} 40. Rd2+ {[%emt 0:00:00]} Kc6 {[%emt 0:00:00]} (40... Ke6 $142) 41. Na5+ $18 {[%emt 0:00:00]} Kc7 {[%emt 0:00:47]} 42. Rc2+ {[%emt 0:00:00]} Kb8 {[%emt 0:01:34]} (42... Kd7 $142 43. Nb7 Bf8 44. Nc5+ Bxc5) 43. Rc6 {[%emt 0:00:00]} Bc7 {[%emt 0:01:15]} 44. Bb6 {[%emt 0:00:00]} Rd4+ $2 {[%emt 0:01:00]} (44... Bxb6 45. Rxb6+ Kc7 46. Rxb5 Kd6) 45. Bxd4 {[%emt 0:00:00]} exd4 {[%emt 0:00:01] Weighted Error Value: White=0.12 (very precise) /Black=0.27 (precise)} 1-0